fUSD/lending_fUSD_20250304
["ID","MTS","AMOUNT","RATE_DAILY","PERIOD"]
[355377777,1741085516007,-500.0,0.00023011,30]
[355377778,1741085516030,-500.0,0.00023011,30]
[355377779,1741085516053,-500.0,0.00023011,30]
[355377780,1741085516077,-500.0,0.00023011,30]
[355377781,1741085516101,-500.0,0.00023011,30]
[355377782,1741085516124,-500.0,0.00023011,30]
[355377783,1741085516148,-500.0,0.00023011,30]
[355377784,1741085516171,-500.0,0.00023011,30]
[355377785,1741085516193,-771.46060528,0.00023011,30]
[355377786,1741085516217,-596.88040496,0.00023011,30]
[355377787,1741085516241,-500.0,0.00023011,30]
[355377788,1741085516264,-510.72596825,0.00023011,30]
[355377789,1741085516287,-498.8462581,0.00023011,30]
[355377790,1741085516311,-500.0,0.00023011,30]
[355377791,1741085516337,-500.0,0.00023011,30]
[355377792,1741085516361,-552.77466849,0.00023011,30]
[355377793,1741085516385,-500.0,0.00023011,30]
[355377794,1741085516411,-500.0,0.00023011,30]
[355377795,1741085516437,-500.0,0.00023011,30]
[355377796,1741085516461,-500.0,0.00023011,30]
[355377797,1741085516485,-981.35109238,0.00023011,30]
[355377798,1741085516509,-500.0,0.00023011,30]
[355377799,1741085516533,-500.0,0.00023011,30]
[355377800,1741085516558,-500.0,0.00023011,30]
[355377801,1741085516582,-500.0,0.00023011,30]
[355377802,1741085516605,-500.0,0.00023011,30]
[355377803,1741085516629,-500.0,0.00023011,30]
[355377804,1741085516655,-500.0,0.00023011,30]
[355377805,1741085516679,-500.0,0.00023011,30]
[355377806,1741085516703,-500.0,0.00023011,30]
[355377807,1741085516728,-500.0,0.00023011,30]
[355377808,1741085516752,-500.0,0.00023011,30]
[355377809,1741085516778,-3813.59757453,0.00024,120]
[355377810,1741085516802,-406.64894028,0.00024,30]
[355377811,1741085516831,-1398.83,0.00024685,120]
[355377812,1741085516856,-150.0,0.00024793,30]
[355377813,1741085516879,-1500.0,0.000249,30]
[355377814,1741085516904,-150.0,0.0002493,30]
[355377815,1741085516927,-150.5,0.0002497,120]
[355377816,1741085516951,-456.0,0.0002497,30]
[355377817,1741085516975,-456.0,0.0002497,30]
[355377818,1741085516999,-150.5,0.0002498,120]
[355377819,1741085517022,-456.0,0.0002498,30]
[355377820,1741085517045,-456.0,0.0002498,30]
[355377821,1741085517068,-456.0,0.0002498,30]
[355377822,1741085517092,-461.5,0.0002498,30]
[355377823,1741085517115,-150.5,0.0002499,120]
[355377824,1741085517138,-247.44,0.0002499,120]
[355377825,1741085517162,-456.0,0.0002499,30]
[355377826,1741085517185,-456.0,0.0002499,30]
[355377827,1741085517497,-456.0,0.0002499,30]
[355377828,1741085517522,-456.0,0.0002499,30]
[355377829,1741085517546,-514.29228503,0.00025,60]
[355377830,1741085517570,-2396.94076122,0.00025,30]
[355377831,1741085517593,-1432.46073259,0.00025,60]
[355377832,1741085517618,-3213.76924196,0.00025,60]
[355377833,1741085517642,-5000.0,0.00025,120]
[355377834,1741085517666,-150.0,0.00025067,30]
[355377835,1741085517691,-150.0,0.00025204,30]
[355377836,1741085517714,-150.0,0.00025336,120]
[355377837,1741085517737,-150.0,0.00025341,30]
[355377838,1741085517762,-150.0,0.00025478,30]
[355377839,1741085517793,-150.0,0.00025615,30]
[355377840,1741085517817,-150.0,0.00025752,30]
[355377841,1741085517840,-150.0,0.00025889,30]
[355377842,1741085517863,-150.0,0.00026026,30]
[355377843,1741085517886,-150.0,0.00026163,30]
[355377844,1741085517911,-155.63338254,0.000263,30]
[355377845,1741085517937,-1702.85,0.00026451,30]
[355377846,1741085517961,-212.99178901,0.000267,60]
[355377847,1741085517984,-800.0,0.00026986,120]
[355377848,1741085518007,-800.0,0.00026986,120]
[355377849,1741085518031,-1562.26752924,0.0002736,120]
[355377850,1741085518054,-2000.0,0.00027397,30]
[355377851,1741085518077,-2000.0,0.00027397,30]
[355377852,1741085518100,-2000.0,0.00027397,30]
[355377853,1741085518123,-2000.0,0.00027397,30]
[355377854,1741085518145,-2000.0,0.00027397,30]
[355377855,1741085518168,-682.72,0.00027397,60]
[355377856,1741085518197,-150.0,0.0002752,120]
[355377857,1741085518221,-500.0,0.0002772,120]
[355377858,1741085518244,-416.33616921,0.00028,120]
[355377859,1741085518270,-516.39854106,0.00028,60]
[355377860,1741085518293,-5000.0,0.00028,120]
[355377861,1741085518319,-150.0,0.00028658,120]
[355377862,1741085518345,-1799.9999998,0.00029,30]
[355377863,1741085518373,-5688.98,0.000298,30]
[355377864,1741085518400,-2732.02,0.000298,31]
[355377865,1741085518430,-2732.02,0.000298,31]
[355377866,1741085518455,-2732.02,0.000298,31]
[355377867,1741085518481,-2732.02,0.000298,31]
[355377868,1741085518507,-2732.02,0.000298,31]
[355377869,1741085518533,-2732.02,0.000298,31]
[355377870,1741085518558,-2732.02,0.000298,31]
[355377871,1741085518585,-2732.02,0.000298,31]
[355377872,1741085518610,-2732.02,0.000298,31]
[355377873,1741085518636,-2732.02,0.000298,31]
[355377874,1741085518661,-2732.02,0.000298,31]
[355377875,1741085518687,-2732.02,0.000298,31]
[355377876,1741085518712,-2732.02,0.000298,31]
[355377877,1741085518737,-2732.02,0.000298,31]
[355377878,1741085518762,-2732.02,0.000298,31]
[355377879,1741085518788,-2732.02,0.000298,31]
[355377880,1741085518813,-150.0,0.00029911,120]
[355377881,1741085518838,-900.0,0.0003,31]
[355377882,1741085518861,-500.0,0.0003,60]
[355377883,1741085518883,-5017.58581208,0.0003,120]
[355377884,1741085518907,-1730.51069523,0.0003,120]
[355377885,1741085518932,-357.0,0.0003,120]
[355377886,1741085518956,-548.0,0.00030613,30]
[355377887,1741085518984,-2732.02,0.000308,31]
[355377888,1741085519010,-2732.02,0.000308,31]
[355377889,1741085519036,-2732.02,0.000308,31]
[355377890,1741085519063,-2732.02,0.000308,31]
[355377891,1741085519089,-2732.02,0.000308,31]
[355377892,1741085519114,-2732.02,0.000308,31]
[355377893,1741085519141,-2732.02,0.000308,31]
[355377894,1741085519167,-2732.02,0.000308,31]
[355377895,1741085519195,-2732.02,0.000308,31]
[355377896,1741085519221,-2732.02,0.000308,31]
[355377897,1741085519248,-2732.02,0.000308,31]
[355377898,1741085519275,-2732.02,0.000308,31]
[355377899,1741085519302,-2732.02,0.000308,31]
[355377900,1741085519333,-2732.02,0.000308,31]
[355377901,1741085519365,-2732.02,0.000308,31]
[355377902,1741085519395,-2732.02,0.000308,31]
[355377903,1741085519426,-2732.02,0.000308,31]
[355377904,1741085519455,-2732.02,0.000308,31]
[355377905,1741085519485,-2732.02,0.000308,31]
[355377906,1741085519517,-2732.02,0.000308,31]
[355377907,1741085519548,-2732.02,0.000308,31]
[355377908,1741085519579,-2732.02,0.000308,31]
[355377909,1741085519609,-2732.02,0.000308,31]
[355377910,1741085519637,-2732.02,0.000308,31]
[355377911,1741085519663,-1702.85,0.00030929,30]
[355377912,1741085519689,-1800.0,0.00031,32]
[355377913,1741085519715,-172.68,0.00031644,91]
[355377914,1741085519743,-2732.02,0.000317,31]
[355377915,1741085519771,-2732.02,0.000317,31]
[355377916,1741085519799,-2732.02,0.000317,31]
[355377917,1741085519827,-2732.02,0.000317,31]
[355377918,1741085519855,-2732.02,0.000317,31]
[355377919,1741085519883,-2732.02,0.000317,31]
[355377920,1741085519910,-2732.02,0.000317,31]
[355377921,1741085519939,-2732.02,0.000317,31]
[355377922,1741085519966,-2732.02,0.000317,31]
[355377923,1741085519994,-2732.02,0.000317,31]
[355377924,1741085520023,-2732.02,0.000317,31]
[355377925,1741085520054,-2732.02,0.000317,31]
[355377926,1741085520084,-2732.02,0.000317,31]
[355377927,1741085520116,-2732.02,0.000317,31]
[355377928,1741085520148,-2732.02,0.000317,31]
[355377929,1741085520364,-2732.02,0.000317,31]
[355377930,1741085520403,-2732.02,0.000317,31]
[355377931,1741085520438,-2732.02,0.000317,31]
[355377932,1741085520468,-2732.02,0.000317,31]
[355377933,1741085520499,-2732.02,0.000317,31]
[355377934,1741085520531,-2732.02,0.000317,31]
[355377935,1741085520562,-2732.02,0.000317,31]
[355377936,1741085520593,-2732.02,0.000317,31]
[355377937,1741085520625,-2732.02,0.000317,31]
[355377938,1741085520652,-150.0,0.00031754,120]
[355377939,1741085520680,-900.0,0.00032,33]
[355377940,1741085520712,-2732.02,0.000326,31]
[355377941,1741085520742,-2732.02,0.000326,31]
[355377942,1741085520772,-2732.02,0.000326,31]
[355377943,1741085520803,-2732.02,0.000326,31]
[355377944,1741085520832,-2732.02,0.000326,31]
[355377945,1741085520865,-2732.02,0.000326,31]
[355377946,1741085520895,-2732.02,0.000326,31]
[355377947,1741085520925,-2732.02,0.000326,31]
[355377948,1741085520955,-2732.02,0.000326,31]
[355377949,1741085520985,-2732.02,0.000326,31]
[355377950,1741085521016,-2732.02,0.000326,31]
[355377951,1741085521049,-2732.02,0.000326,31]
[355377952,1741085521079,-2732.02,0.000326,31]
[355377953,1741085521109,-2732.02,0.000326,31]
[355377954,1741085521139,-2732.02,0.000326,31]
[355377955,1741085521168,-2732.02,0.000326,31]
[355377956,1741085521199,-2732.02,0.000326,31]
[355377957,1741085521231,-2732.02,0.000326,31]
[355377958,1741085521261,-2732.02,0.000326,31]
[355377959,1741085521291,-2732.02,0.000326,31]
[355377960,1741085521320,-2732.02,0.000326,31]
[355377961,1741085521349,-2732.02,0.000326,31]
[355377962,1741085521377,-2732.02,0.000326,31]
[355377963,1741085521411,-2732.02,0.000326,31]
[355377964,1741085521436,-1000.0,0.00032876,60]
[355377965,1741085521460,-1000.0,0.00032876,60]
[355377966,1741085521485,-1000.0,0.00032876,60]
[355377967,1741085521509,-1000.0,0.00032876,60]
[355377968,1741085521535,-1000.0,0.00032876,60]
[355377969,1741085521560,-1000.0,0.00032876,60]
[355377970,1741085521583,-833.49090248,0.00032876,60]
[355377972,1741085521609,-1800.0,0.00033,34]
[355377973,1741085521634,-865.07496226,0.00033,120]
[355377974,1741085521662,-2732.02,0.000335,31]
[355377975,1741085521689,-2732.02,0.000335,31]
[355377976,1741085521717,-2732.02,0.000335,31]
[355377977,1741085521745,-2732.02,0.000335,31]
[355377978,1741085521773,-2732.02,0.000335,31]
[355377979,1741085521802,-2732.02,0.000335,31]
[355377980,1741085521830,-2732.02,0.000335,31]
[355377981,1741085521857,-2732.02,0.000335,31]
[355377982,1741085521885,-2732.02,0.000335,31]
[355377983,1741085521912,-2732.02,0.000335,31]
[355377984,1741085521940,-2732.02,0.000335,31]
[355377985,1741085521966,-2732.02,0.000335,31]
[355377986,1741085521990,-768.0,0.00033674,30]
[355377987,1741085522015,-150.0,0.00033807,120]
[355377988,1741085522039,-1800.0,0.00034,35]
[355377989,1741085522064,-152.0,0.00034203,30]
[355377990,1741085522087,-500.0,0.00034511,120]
[355377991,1741085522111,-152.0,0.00034588,31]
[355377992,1741085522137,-152.0,0.00034972,32]
[355377993,1741085522162,-1800.0,0.00035,36]
[355377994,1741085522187,-4400.54263369,0.00035,30]
[355377995,1741085522210,-3250.66650762,0.00035,30]
[355377996,1741085522234,-400.15475479,0.00035,120]
[355377997,1741085522258,-150.0,0.00035257,120]
[355377998,1741085522281,-152.0,0.00035357,33]
[355377999,1741085522306,-1702.85,0.00035407,120]
[355378000,1741085522333,-1465.144,0.00035729,43]
[355378001,1741085522360,-152.0,0.00035742,34]
[355378002,1741085522385,-2334.11510496,0.00035768,120]
[355378003,1741085522409,-160.29269805,0.00035768,120]
[355378004,1741085522439,-150.0,0.00035813,120]
[355378005,1741085522463,-152.38578955,0.00036,120]
[355378006,1741085522488,-900.0,0.00036,37]
[355378007,1741085522515,-150.0,0.00036087,120]
[355378008,1741085522542,-150.0,0.00036147,120]
[355378009,1741085522568,-5175.65095117,0.000365,120]
[355378010,1741085522594,-150.0,0.00036802,120]
[355378011,1741085522619,-900.0,0.00037,38]
[355378012,1741085522645,-5709.0,0.00037,117]
[355378013,1741085522671,-390.0,0.00037042,30]
[355378014,1741085522702,-1800.0,0.00038,39]
[355378015,1741085522727,-1279.67,0.00038356,120]
[355378016,1741085522750,-688.29,0.00038356,120]
[355378017,1741085522774,-1511.94,0.000384,120]
[355378018,1741085522798,-853.71,0.000384,120]
[355378019,1741085522822,-3837.96,0.0003844,120]
[355378020,1741085522847,-6281.0,0.00038909,117]
[355378021,1741085522871,-1800.0,0.00039,40]
[355378022,1741085522895,-150.0,0.00039,120]
[355378023,1741085522920,-1279.67,0.00039452,120]
[355378024,1741085522947,-3566.788,0.000398,60]
[355378025,1741085522973,-1702.85,0.00039885,120]
[355378026,1741085522999,-454.05329787,0.0004,120]
[355378027,1741085523023,-5392.05213058,0.0004,120]
[355378028,1741085523047,-5016.13350023,0.0004,30]
[355378029,1741085523071,-29999.999999,0.0004,120]
[355378030,1741085523097,-5580.49414241,0.0004,120]
[355378031,1741085523122,-10000.0,0.0004,120]
[355378032,1741085523147,-2377.16,0.0004,120]
[355378033,1741085523174,-4893.17203631,0.000402,120]
[355378034,1741085523380,-150.0,0.00040231,120]
[355378035,1741085523407,-1279.67,0.00040547,120]
[355378036,1741085523437,-150.0,0.00040667,120]
[355378037,1741085523463,-46937.70404034,0.000408,120]
[355378038,1741085523490,-13704.0,0.00040818,117]
[355378039,1741085523517,-5547.72,0.00041,30]
[355378040,1741085523544,-4245.49005342,0.00041,120]
[355378041,1741085523572,-150.0,0.00041016,120]
[355378042,1741085523598,-2041.82906508,0.00041044,45]
[355378043,1741085523626,-1112.5,0.00041068,120]
[355378044,1741085523652,-1112.5,0.00041068,120]
[355378045,1741085523681,-1112.5,0.00041068,120]
[355378046,1741085523708,-1112.5,0.00041068,120]
[355378047,1741085523736,-1112.5,0.00041068,120]
[355378048,1741085523762,-1112.5,0.00041068,120]
[355378049,1741085523788,-1112.5,0.00041068,120]
[355378050,1741085523816,-1112.5,0.00041068,120]
[355378051,1741085523842,-1112.5,0.00041068,120]
[355378052,1741085523869,-1112.5,0.00041068,120]
[355378053,1741085523897,-1112.5,0.00041068,120]
[355378054,1741085523926,-1112.5,0.00041068,120]
[355378055,1741085523954,-1112.5,0.00041068,120]
[355378056,1741085523983,-1112.5,0.00041068,120]
[355378057,1741085524011,-1112.5,0.00041068,120]
[355378058,1741085524036,-1112.5,0.00041068,120]
[355378059,1741085524064,-1112.5,0.00041068,120]
[355378060,1741085524089,-1112.5,0.00041068,120]
[355378061,1741085524115,-1112.5,0.00041068,120]
[355378062,1741085524139,-1112.5,0.00041068,120]
[355378063,1741085524164,-1112.5,0.00041068,120]
[355378064,1741085524192,-1112.5,0.00041068,120]
[355378065,1741085524217,-1112.5,0.00041068,120]
[355378066,1741085524243,-1112.66,0.00041068,120]
[355378067,1741085524269,-1540.17016413,0.00041086,45]
[355378068,1741085524297,-500.0,0.00041095,120]
[355378069,1741085524323,-500.0,0.00041095,120]
[355378070,1741085524354,-500.0,0.00041095,120]
[355378071,1741085524379,-500.0,0.00041095,120]
[355378072,1741085524405,-500.0,0.00041095,120]
[355378073,1741085524433,-500.0,0.00041095,120]
[355378074,1741085524458,-500.0,0.00041095,120]
[355378075,1741085524484,-540.70579536,0.00041095,120]
[355378076,1741085524508,-500.0,0.00041095,120]
[355378077,1741085524533,-500.0,0.00041095,120]
[355378078,1741085524557,-500.0,0.00041095,120]
[355378079,1741085524582,-514.28302488,0.00041095,120]
[355378080,1741085524609,-160.00173182,0.000411,120]
[355378081,1741085524635,-160.0,0.000411,120]
[355378082,1741085524663,-1286.67089374,0.000411,120]
[355378083,1741085524690,-1286.67089374,0.000411,120]
[355378084,1741085524714,-1286.67089374,0.000411,120]
[355378085,1741085524737,-1286.67089374,0.000411,120]
[355378086,1741085524761,-1286.67089374,0.000411,120]
[355378087,1741085524784,-1286.67089374,0.000411,120]
[355378088,1741085524808,-1286.67089374,0.000411,120]
[355378089,1741085524833,-1286.67089374,0.000411,120]
[355378090,1741085524856,-1286.67089374,0.000411,120]
[355378091,1741085524880,-1286.67089374,0.000411,120]
[355378092,1741085524904,-1286.67089374,0.000411,120]
[355378093,1741085524929,-1286.67089374,0.000411,120]
[355378094,1741085524953,-1286.67089374,0.000411,120]
[355378095,1741085524978,-1286.67089374,0.000411,120]
[355378096,1741085525002,-1286.67089374,0.000411,120]
[355378097,1741085525025,-1286.67089374,0.000411,120]
[355378098,1741085525049,-1286.67089374,0.000411,120]
[355378099,1741085525073,-1286.67089374,0.000411,120]
[355378100,1741085525097,-1286.67089374,0.000411,120]
[355378101,1741085525121,-1286.67,0.000411,120]
[355378102,1741085525145,-3002.23208539,0.000411,120]
[355378103,1741085525170,-3002.23208539,0.000411,120]
[355378104,1741085525198,-3002.23208539,0.000411,120]
[355378105,1741085525222,-3002.23208539,0.000411,120]
[355378106,1741085525248,-3002.23208539,0.000411,120]
[355378107,1741085525274,-3002.23208539,0.000411,120]
[355378108,1741085525300,-3002.23208539,0.000411,120]
[355378109,1741085525326,-3002.23208539,0.000411,120]
[355378110,1741085525356,-3002.23208539,0.000411,120]
[355378111,1741085525384,-3002.23208539,0.000411,120]
[355378112,1741085525411,-3002.23208539,0.000411,120]
[355378113,1741085525439,-3002.23208539,0.000411,120]
[355378114,1741085525464,-3002.23208539,0.000411,120]
[355378115,1741085525489,-3002.23208539,0.000411,120]
[355378116,1741085525514,-3002.23208539,0.000411,120]
[355378117,1741085525540,-3002.23208539,0.000411,120]
[355378118,1741085525565,-3002.23208539,0.000411,120]
[355378119,1741085525590,-3002.23208539,0.000411,120]
[355378120,1741085525616,-3002.23208539,0.000411,120]
[355378121,1741085525641,-3002.23,0.000411,120]
[355378122,1741085525666,-1631.92505703,0.000411,120]
[355378123,1741085525695,-1631.92505703,0.000411,120]
[355378124,1741085525720,-1631.92505703,0.000411,120]
[355378125,1741085525745,-1631.92505703,0.000411,120]
[355378126,1741085525769,-1631.92505703,0.000411,120]
[355378127,1741085525794,-1631.92505703,0.000411,120]
[355378128,1741085525821,-1631.92505703,0.000411,120]
[355378129,1741085525846,-1631.92505703,0.000411,120]
[355378130,1741085525872,-1631.92505703,0.000411,120]
[355378131,1741085525896,-1631.92505703,0.000411,120]
[355378132,1741085525921,-1631.92505703,0.000411,120]
[355378133,1741085525947,-1631.92505703,0.000411,120]
[355378134,1741085525971,-1631.92505703,0.000411,120]
[355378135,1741085525996,-1631.92505703,0.000411,120]
[355378136,1741085526021,-1631.92505703,0.000411,120]
[355378137,1741085526211,-1631.92505703,0.000411,120]
[355378138,1741085526236,-1631.92505703,0.000411,120]
[355378139,1741085526260,-1631.92505703,0.000411,120]
[355378140,1741085526284,-1631.92505703,0.000411,120]
[355378141,1741085526308,-1631.92,0.000411,120]
[355378142,1741085526332,-3807.82513307,0.000411,120]
[355378143,1741085526360,-3807.82513307,0.000411,120]
[355378144,1741085526384,-3807.82513307,0.000411,120]
[355378145,1741085526409,-3807.82513307,0.000411,120]
[355378146,1741085526434,-3807.82513307,0.000411,120]
[355378147,1741085526458,-3807.82513307,0.000411,120]
[355378148,1741085526483,-3807.82513307,0.000411,120]
[355378149,1741085526510,-3807.82513307,0.000411,120]
[355378150,1741085526537,-3807.82513307,0.000411,120]
[355378151,1741085526563,-3807.82513307,0.000411,120]
[355378152,1741085526588,-3807.82513307,0.000411,120]
[355378153,1741085526613,-3807.82513307,0.000411,120]
[355378154,1741085526638,-3807.82513307,0.000411,120]
[355378155,1741085526662,-3807.82513307,0.000411,120]
[355378156,1741085526689,-3807.82513307,0.000411,120]
[355378157,1741085526713,-3807.82513307,0.000411,120]
[355378158,1741085526737,-3807.82513307,0.000411,120]
[355378159,1741085526761,-3807.82513307,0.000411,120]
[355378160,1741085526785,-3807.82513307,0.000411,120]
[355378161,1741085526809,-3807.82,0.000411,120]
[355378162,1741085526833,-513.399202,0.00041303,120]
[355378163,1741085526857,-213.556095,0.00041626,120]
[355378164,1741085526880,-500.0,0.00041638,60]
[355378165,1741085526904,-800.0,0.00041638,60]
[355378166,1741085526929,-1279.67,0.00041643,120]
[355378167,1741085526953,-623.26382276,0.00041913,30]
[355378168,1741085526976,-154.99678267,0.00041913,30]
[355378169,1741085527000,-150.0,0.00041913,30]
[355378170,1741085527024,-271.99294183,0.00041913,30]
[355378171,1741085527047,-150.0,0.00041913,30]
[355378172,1741085527070,-150.0,0.00041913,30]
[355378173,1741085527094,-623.26382276,0.0004196,30]
[355378174,1741085527118,-154.99678267,0.0004196,30]
[355378175,1741085527142,-271.99294183,0.0004196,30]
[355378176,1741085527166,-3031.71344522,0.00042,120]
[355378177,1741085527191,-1588.96828352,0.00042,120]
[355378178,1741085527213,-5000.0,0.00042,30]
[355378179,1741085527237,-623.26382276,0.00042007,30]
[355378180,1741085527260,-154.99678267,0.00042007,30]
[355378181,1741085527283,-271.99294183,0.00042007,30]
[355378182,1741085527307,-1061.0,0.00042029,30]
[355378183,1741085527334,-150.0,0.00042039,30]
[355378184,1741085527358,-623.26382276,0.00042054,30]
[355378185,1741085527382,-154.99678267,0.00042054,30]
[355378186,1741085527406,-271.99294183,0.00042054,30]
[355378187,1741085527432,-623.26382276,0.00042101,30]
[355378188,1741085527456,-154.99678267,0.00042101,30]
[355378189,1741085527480,-271.99294183,0.00042101,30]
[355378190,1741085527504,-623.26382276,0.00042148,30]
[355378191,1741085527528,-154.99678267,0.00042148,30]
[355378192,1741085527551,-271.99294183,0.00042148,30]
[355378193,1741085527576,-150.0,0.00042165,30]
[355378194,1741085527600,-800.0,0.00042186,60]
[355378195,1741085527624,-500.0,0.00042191,120]
[355378196,1741085527648,-623.26382276,0.00042195,30]
[355378197,1741085527672,-154.99678267,0.00042195,30]
[355378198,1741085527698,-271.99294183,0.00042195,30]
[355378199,1741085527722,-623.26382276,0.00042242,30]
[355378200,1741085527746,-154.99678267,0.00042242,30]
[355378201,1741085527770,-271.99294183,0.00042242,30]
[355378202,1741085527795,-623.26382276,0.00042289,30]
[355378203,1741085527819,-154.99678267,0.00042289,30]
[355378204,1741085527843,-271.99294183,0.00042289,30]
[355378205,1741085527867,-150.0,0.00042291,30]
[355378206,1741085527891,-150.0,0.00042316,120]
[355378207,1741085527915,-623.26382276,0.00042336,30]
[355378208,1741085527940,-154.99678267,0.00042336,30]
[355378209,1741085527964,-271.99294183,0.00042336,30]
[355378210,1741085527988,-421.30082733,0.00042379,30]
[355378211,1741085528014,-623.26382276,0.00042383,30]
[355378212,1741085528038,-154.99678267,0.00042383,30]
[355378213,1741085528063,-271.99294183,0.00042383,30]
[355378214,1741085528088,-150.0,0.00042416,30]
[355378215,1741085528113,-623.26382276,0.0004243,30]
[355378216,1741085528137,-154.99678267,0.0004243,30]
[355378217,1741085528162,-271.99294183,0.0004243,30]
[355378218,1741085528190,-623.26382276,0.00042477,30]
[355378219,1741085528214,-154.99678267,0.00042477,30]
[355378220,1741085528239,-271.99294183,0.00042477,30]
[355378221,1741085528263,-623.26382276,0.00042525,30]
[355378222,1741085528288,-154.99678267,0.00042525,30]
[355378223,1741085528314,-271.99294183,0.00042525,30]
[355378224,1741085528342,-150.0,0.00042542,30]
[355378225,1741085528366,-623.26382276,0.00042572,30]
[355378226,1741085528392,-154.99678267,0.00042572,30]
[355378227,1741085528418,-271.99294183,0.00042572,30]
[355378228,1741085528444,-623.26382276,0.00042619,30]
[355378229,1741085528468,-154.99678267,0.00042619,30]
[355378230,1741085528493,-271.99294183,0.00042619,30]
[355378231,1741085528518,-623.26382276,0.00042666,30]
[355378232,1741085528542,-154.99678267,0.00042666,30]
[355378233,1741085528567,-271.99294183,0.00042666,30]
[355378234,1741085528591,-150.0,0.00042668,30]
[355378235,1741085528615,-29015.96164724,0.00042711,30]
[355378236,1741085528640,-623.26382276,0.00042713,30]
[355378237,1741085528664,-154.99678267,0.00042713,30]
[355378238,1741085528689,-271.99294183,0.00042713,30]
[355378239,1741085528713,-14844.7,0.00042727,117]
[355378240,1741085528737,-800.0,0.00042734,60]
[355378241,1741085528762,-236.95934954,0.00042734,60]
[355378242,1741085528980,-500.0,0.00042734,60]
[355378243,1741085529008,-1279.67,0.00042739,120]
[355378244,1741085529033,-172.68,0.0004274,91]
[355378245,1741085529057,-623.26382276,0.0004276,30]
[355378246,1741085529082,-154.99678267,0.0004276,30]
[355378247,1741085529106,-271.99294183,0.0004276,30]
[355378248,1741085529135,-150.0,0.00042794,30]
[355378249,1741085529159,-2869.986,0.000428,90]
[355378250,1741085529185,-623.26382276,0.00042807,30]
[355378251,1741085529209,-154.99678267,0.00042807,30]
[355378252,1741085529232,-271.99294183,0.00042807,30]
[355378253,1741085529257,-623.26382276,0.00042854,30]
[355378254,1741085529281,-154.99678267,0.00042854,30]
[355378255,1741085529307,-271.99294183,0.00042854,30]
[355378256,1741085529333,-10029.8003602,0.000429,90]
[355378257,1741085529358,-623.26382276,0.00042901,30]
[355378258,1741085529383,-154.99678267,0.00042901,30]
[355378259,1741085529408,-271.99294183,0.00042901,30]
[355378260,1741085529436,-150.0,0.00042909,120]
[355378261,1741085529460,-150.0,0.0004292,30]
[355378262,1741085529484,-623.26382276,0.00042948,30]
[355378263,1741085529508,-154.99678267,0.00042948,30]
[355378264,1741085529532,-271.99294183,0.00042948,30]
[355378265,1741085529557,-623.26382276,0.00042995,30]
[355378266,1741085529581,-154.99678267,0.00042995,30]
[355378267,1741085529606,-271.99294183,0.00042995,30]
[355378268,1741085529631,-433.06927006,0.00043,33]
[355378269,1741085529655,-1000000.0,0.00043,120]
[355378270,1741085529679,-2814.87387544,0.00043,120]
[355378271,1741085529705,-4130.57408574,0.00043,120]
[355378272,1741085529730,-623.26382276,0.00043042,30]
[355378273,1741085529754,-154.99678267,0.00043042,30]
[355378274,1741085529779,-271.99294183,0.00043042,30]
[355378275,1741085529804,-150.0,0.00043046,30]
[355378276,1741085529827,-3619.958,0.00043053,120]
[355378277,1741085529851,-3619.958,0.00043053,120]